bitfinex/quotes_SOLUSD_20240915
["timestamp","ask_amount","ask_price","bid_price","bid_amount"]
[1726429560020,27.4706,133.86,133.81,23.0749]
[1726429573948,7.471,133.85,133.81,23.0749]
[1726429577628,7.4706,133.86,133.81,23.0749]
[1726429583768,20.0,133.88,133.81,23.0749]
[1726429583769,27.4698,133.88,133.81,15.6018]
[1726429583937,7.4689,133.89,133.84,7.471]
[1726429584139,7.4694,133.88,133.85,15.1374]
[1726429584444,7.4701,133.87,133.85,15.1374]
[1726429585260,7.4704,133.86,133.82,6.1156]
[1726429589269,7.4712,133.85,133.82,6.1156]
[1726429591661,7.4705,133.86,133.82,6.1156]
[1726429593161,7.4699,133.87,133.83,7.4721]
[1726429593366,7.4699,133.87,133.82,13.5883]
[1726429597356,7.4705,133.86,133.82,13.5883]
[1726429599579,7.4705,133.86,133.82,6.1156]
[1726429600246,92.72342446,133.9,133.82,6.1156]
[1726429600247,7.4711,133.85,133.82,6.1156]
[1726429601391,7.4711,133.85,133.81,15.1374]
[1726429602150,29.9411,133.85,133.81,15.1374]
[1726429602394,7.4711,133.85,133.81,15.1374]
[1726429604046,7.4705,133.86,133.81,22.6106]
[1726429604248,92.72342446,133.9,133.82,14.1132]
[1726429604469,7.4703,133.87,133.82,14.1132]
[1726429609376,7.4695,133.88,133.82,6.6407]
[1726429610743,7.4695,133.88,133.83,4.18152015]
[1726429610943,7.4695,133.88,133.82,6.6407]
[1726429611175,7.4695,133.88,133.83,4.18152015]
[1726429611352,7.4699,133.87,133.82,6.6407]
[1726429611684,7.4699,133.87,133.83,4.1815209]
[1726429611854,7.4699,133.87,133.82,6.6407]
[1726429612172,7.4699,133.87,133.83,4.18154769]
[1726429612381,7.4706,133.86,133.82,6.6407]
[1726429612669,7.4711,133.85,133.83,4.18146861]
[1726429612865,7.4711,133.85,133.82,6.6407]
[1726429613066,7.4711,133.85,133.83,4.18165754]
[1726429613387,7.4711,133.85,133.83,4.18165829]
[1726429613754,7.4711,133.85,133.82,6.6407]
[1726429613954,7.4711,133.85,133.83,4.18175454]
[1726429614256,7.4711,133.85,133.82,6.6407]
[1726429614456,7.4717,133.84,133.81,15.1374]
[1726429620568,7.4717,133.84,133.82,4.18201843]
[1726429620761,7.4717,133.84,133.81,15.1374]
[1726429621183,7.4717,133.84,133.82,4.18201838]
[1726429621391,7.4717,133.84,133.81,15.1374]
[1726429621574,7.4717,133.84,133.82,4.18199656]
[1726429621885,7.4717,133.84,133.81,15.1374]
[1726429622081,7.4717,133.84,133.82,4.1820241]
[1726429622287,7.4717,133.84,133.81,15.1374]
[1726429622485,7.4717,133.84,133.82,4.1820241]
[1726429622687,7.4717,133.84,133.81,15.1374]
[1726429622874,7.4717,133.84,133.82,4.1820241]
[1726429623176,7.4717,133.84,133.81,15.1374]
[1726429623377,7.4717,133.84,133.82,4.1820241]
[1726429623587,7.4717,133.84,133.81,15.1374]
[1726429623877,7.4717,133.84,133.82,4.1820241]
[1726429624191,7.4711,133.85,133.81,15.1374]
[1726429624571,7.4711,133.85,133.82,4.18202239]
[1726429624773,7.4711,133.85,133.81,22.6104]
[1726429624980,7.4705,133.86,133.82,4.18204821]
[1726429625181,7.4705,133.86,133.81,22.6104]
[1726429625490,7.4705,133.86,133.82,4.18204746]
[1726429625668,7.4705,133.86,133.81,22.6104]
[1726429625868,7.4705,133.86,133.82,4.1820197]
[1726429626092,7.4705,133.86,133.81,22.6104]
[1726429626293,7.4705,133.86,133.82,4.1820197]
[1726429626481,7.4705,133.86,133.81,22.6104]
[1726429626680,7.4705,133.86,133.82,4.1820197]
[1726429626881,7.4705,133.86,133.81,22.6104]
[1726429627082,7.4705,133.86,133.82,4.18201895]
[1726429627299,7.4705,133.86,133.81,22.6104]
[1726429627697,7.4705,133.86,133.82,4.1820197]
[1726429628191,7.4705,133.86,133.81,22.6104]
[1726429628392,7.471,133.85,133.82,4.1820197]
[1726429628706,7.471,133.85,133.81,22.6104]
[1726429628992,7.4717,133.84,133.82,4.18202067]
[1726429629181,7.4717,133.84,133.8,0.2496483]
[1726429632900,7.4717,133.84,133.8,7.7233483]
[1726429636883,7.471,133.85,133.81,7.4731]
[1726429637682,409.376884,133.88,133.8,0.2496483]
[1726429637683,20.0,133.87,133.83,7.4721]
[1726429638096,393.0699,133.88,133.83,7.4721]
[1726429640208,7.4699,133.88,133.83,7.4721]
[1726429641982,7.4699,133.87,133.83,7.4721]
[1726429643588,23.776884,133.87,133.8,0.2496483]
[1726429644111,7.4705,133.86,133.8,0.2496483]
[1726429645310,7.4705,133.86,133.81,7.4732]
[1726429645907,46.246884,133.87,133.8,0.2496483]
[1726429646206,7.4716,133.84,133.8,0.2496483]
[1726429647591,7.4724,133.83,133.8,0.2496483]
[1726429649309,7.4728,133.82,133.8,0.2496483]
[1726429649893,31.250084,133.81,133.8,0.2496483]
[1726429650110,51.250084,133.81,133.8,0.2496483]
[1726429650296,51.250084,133.81,133.76,0.2496483]
[1726429650297,7.474,133.8,133.76,0.2496483]
[1726429651204,31.251484,133.79,133.76,0.2496483]
[1726429651408,7.4746,133.79,133.76,0.2496483]
[1726429651819,7.475,133.78,133.76,0.2496483]
[1726429653912,7.4755,133.77,133.76,0.2496483]
[1726429654732,7.475,133.78,133.76,0.2496483]
[1726429658229,20.0,133.78,133.76,0.2496483]
[1726429659312,393.0739,133.8,133.76,0.2496483]
[1726429659822,7.4745,133.79,133.76,0.2496483]
[1726429661525,7.4739,133.8,133.76,0.2496483]
[1726429662505,20.0,133.8,133.76,7.7256483]
[1726429662711,20.0,133.8,133.77,7.4754]
[1726429662930,393.0728,133.82,133.77,7.4754]
[1726429663135,385.6,133.82,133.76,15.4804483]
[1726429663308,385.6,133.82,133.78,7.4749]
[1726429663731,385.6,133.82,133.79,7.4743]
[1726429664138,385.6,133.82,133.8,7.4738]
[1726429664344,7.4711,133.85,133.8,7.4738]
[1726429674844,385.6,133.88,133.81,15.3152]
[1726429675040,7.4699,133.87,133.82,7.4726]
[1726429675221,414.4308483,133.9,133.81,15.3152]
[1726429675423,422.23748049,133.9,133.81,15.3152]
[1726429676229,20.0,133.88,133.81,15.3152]
[1726429676430,7.4705,133.86,133.81,15.3152]
[1726429676626,7.4699,133.87,133.82,6.3035]
[1726429677345,20.0,133.88,133.82,6.3035]
[1726429677542,23.776884,133.87,133.82,6.3035]
[1726429677745,23.776884,133.85,133.82,6.3035]
[1726429678243,23.776884,133.85,133.81,15.3152]
[1726429678244,31.247984,133.85,133.81,15.3152]
[1726429683638,7.47,133.87,133.82,7.4726]
[1726429685145,23.776884,133.88,133.81,15.3152]
[1726429685332,31.246284,133.88,133.81,15.3152]
[1726429686938,0.2496483,133.9,133.82,6.3035]
[1726429687149,7.469,133.89,133.82,6.3035]
[1726429687863,29.939,133.89,133.82,6.3035]
[1726429688360,23.776884,133.88,133.82,6.89055669]
[1726429688564,23.776884,133.88,133.82,6.3035]
[1726429693139,46.246884,133.89,133.82,6.3035]
[1726429693367,7.47,133.87,133.82,6.3035]
[1726429704867,20.0,133.88,133.82,7.79689074]
[1726429705066,23.776884,133.89,133.82,6.3035]
[1726429705873,7.4699,133.87,133.82,6.3035]
[1726429707279,27.4693,133.88,133.82,6.3035]
[1726429709269,26.9693,133.88,133.82,6.3035]
[1726429710271,26.9693,133.88,133.83,7.472]
[1726429711687,7.4705,133.86,133.82,6.3035]
[1726429711981,7.4717,133.84,133.82,6.3035]
[1726429712167,7.4722,133.83,133.81,15.3152]
[1726429712370,22.47,133.86,133.79,6.1649]
[1726429712551,42.47,133.83,133.79,6.1649]
[1726429712870,23.776884,133.82,133.79,6.1649]
[1726429714361,31.249684,133.82,133.79,6.1649]
[1726429714784,20.0,133.83,133.79,6.1649]
[1726429716274,7.4722,133.83,133.79,6.1649]
[1726429718476,7.4722,133.83,133.79,13.6392]
[1726429727881,20.0,133.83,133.79,13.6392]
[1726429730002,22.47,133.86,133.79,6.1649]
[1726429730179,31.247784,133.86,133.81,7.4731]
[1726429731483,393.0699,133.87,133.82,22.8609]
[1726429734690,7.4699,133.87,133.82,22.8609]
[1726429735697,7.4694,133.88,133.83,6.3652]
[1726429735902,7.4688,133.89,133.85,15.0183]
[1726429736399,7.4688,133.89,133.85,22.4893]
[1726429741303,7.4688,133.89,133.85,15.0183]
[1726429742080,7.4694,133.88,133.85,15.0183]
[1726429742296,43.776884,133.89,133.85,15.0183]
[1726429743398,66.246884,133.89,133.83,6.3652]
[1726429744106,7.4709,133.86,133.83,6.3652]
[1726429744407,7.471,133.85,133.83,6.3652]
[1726429748303,7.471,133.85,133.82,15.0183]
[1726429757216,7.4706,133.86,133.82,15.0183]
[1726429758615,7.4712,133.85,133.82,15.0183]
[1726429760820,31.247484,133.86,133.82,15.0183]
[1726429761413,7.4711,133.85,133.82,15.0183]
[1726429762421,7.4711,133.85,133.81,4.18180582]
[1726429762718,7.4716,133.84,133.8,13.8389]
[1726429762896,7.4716,133.84,133.81,4.18181265]
[1726429763099,7.4716,133.84,133.8,13.8389]
[1726429763327,7.4716,133.84,133.81,4.18181415]
[1726429763617,7.4722,133.83,133.78,15.2692]
[1726429763795,7.4722,133.83,133.79,4.18205806]
[1726429764097,7.4722,133.83,133.8,4.18205806]
[1726429764294,7.4722,133.83,133.78,15.2692]
[1726429764295,7.4717,133.84,133.79,7.4742]
[1726429764525,7.4717,133.84,133.8,4.18219275]
[1726429764690,7.4717,133.84,133.79,7.4742]
[1726429764895,7.4717,133.84,133.8,4.18217007]
[1726429765133,7.4717,133.84,133.79,7.4742]
[1726429765299,7.4717,133.84,133.8,4.18215346]
[1726429765506,7.4717,133.84,133.79,7.4742]
[1726429765703,7.4717,133.84,133.8,4.18217007]
[1726429765904,7.4717,133.84,133.79,7.4742]
[1726429766108,7.4717,133.84,133.8,4.18216932]
[1726429766321,27.4711,133.85,133.8,7.4734]
[1726429769532,27.4711,133.85,133.81,4.18200944]
[1726429769711,27.4711,133.85,133.8,7.4734]
[1726429770803,27.4711,133.85,133.81,4.18203627]
[1726429771005,27.4711,133.85,133.8,7.4734]
[1726429771333,27.4711,133.85,133.81,4.18203627]
[1726429771834,27.4711,133.85,133.8,7.4734]
[1726429772129,27.4711,133.85,133.81,4.18200944]
[1726429772334,27.4711,133.85,133.8,7.4734]
[1726429772514,27.4711,133.85,133.81,4.18200869]
[1726429772714,27.4711,133.85,133.8,7.4734]
[1726429772937,27.4711,133.85,133.81,4.18200944]
[1726429773524,27.4711,133.85,133.8,7.4734]
[1726429774333,27.4711,133.85,133.81,4.18198261]
[1726429774636,27.4711,133.85,133.8,7.4734]
[1726429774836,7.4716,133.84,133.79,7.4742]
[1726429775061,7.4716,133.84,133.8,4.18227734]
[1726429775226,7.4716,133.84,133.79,7.4742]
[1726429775411,7.4722,133.83,133.79,7.4742]
[1726429775709,7.4727,133.82,133.78,15.2692]
[1726429776725,7.4722,133.83,133.78,15.2692]
[1726429781254,7.4727,133.82,133.78,22.7441]
[1726429784238,7.4727,133.82,133.78,15.2692]
[1726429784438,7.4727,133.82,133.77,7.4753]
[1726429791933,7.4739,133.8,133.76,0.2496483]
[1726429792129,7.4739,133.8,133.76,7.7256483]
[1726429797553,7.4733,133.81,133.77,7.4754]
[1726429797851,51.249584,133.82,133.77,7.4754]
[1726429801337,20.0,133.82,133.78,7.4748]
[1726429804162,7.4728,133.82,133.78,7.4748]
[1726429804449,7.4728,133.82,133.77,7.4754]
[1726429806252,7.4728,133.82,133.78,7.4749]
[1726429812042,7.4732,133.81,133.76,7.7251483]
[1726429812453,51.28190082,133.83,133.76,7.7251483]
[1726429812454,7.4744,133.79,133.76,0.2496483]
[1726429813155,7.4744,133.79,133.73,6.2192]
[1726429813156,43.776884,133.79,133.73,6.2192]
[1726429813362,43.776884,133.79,133.72,0.2496483]
[1726429813540,7.475,133.78,133.73,7.4777]
[1726429814570,7.4761,133.76,133.72,0.2496483]
[1726429814863,43.776884,133.77,133.72,0.2496483]
[1726429814864,7.4766,133.75,133.72,0.2496483]
[1726429815849,7.4761,133.76,133.72,0.2496483]
[1726429819774,7.4767,133.75,133.72,0.2496483]
[1726429820199,31.254284,133.74,133.72,0.2496483]
[1726429820495,7.4767,133.75,133.72,0.2496483]
[1726429823196,7.4761,133.76,133.72,0.2496483]
[1726429823395,20.0,133.75,133.72,0.2496483]
[1726429825198,7.4766,133.75,133.72,0.2496483]
[1726429826079,7.4773,133.74,133.72,0.2496483]
[1726429834798,405.6,133.76,133.72,0.2496483]
[1726429835292,23.776884,133.75,133.72,0.2496483]
[1726429835493,31.253984,133.75,133.72,0.2496483]
[1726429838616,20.0,133.76,133.72,16.3466483]
[1726429838784,385.6,133.77,133.72,16.3466483]
[1726429839185,385.6,133.77,133.74,7.477]
[1726429839580,385.6,133.77,133.72,17.84202693]
[1726429839581,385.6,133.77,133.75,7.4765]
[1726429840502,385.6,133.77,133.76,7.476]
[1726429841383,7.4733,133.81,133.76,7.476]
[1726429841581,7.4728,133.82,133.77,7.4753]
[1726429841786,31.250184,133.81,133.75,7.476]
[1726429844302,31.250184,133.81,133.76,7.4758]
[1726429844707,31.250184,133.81,133.77,7.4755]
[1726429844908,27.4727,133.82,133.77,7.4755]
[1726429845122,27.4727,133.82,133.77,23.5725]
[1726429849518,20.0,133.82,133.78,7.4747]
[1726429849724,20.0,133.82,133.79,7.4743]
[1726429850402,20.0,133.83,133.79,7.4743]
[1726429851032,393.3201483,133.86,133.81,7.4732]
[1726429851829,7.7201483,133.86,133.81,7.4732]
[1726429852031,7.7201483,133.86,133.82,16.097]
[1726429852032,0.2496483,133.86,133.82,16.097]
[1726429852203,0.2496483,133.86,133.83,7.472]
[1726429852530,0.2496483,133.86,133.82,16.097]
[1726429854415,0.2496483,133.86,133.83,7.472]
[1726429860533,7.4723,133.83,133.78,7.4748]
[1726429860734,7.4723,133.83,133.77,15.8123]
[1726429861028,7.4723,133.83,133.78,7.4745]
[1726429861623,7.4727,133.82,133.78,7.4745]
[1726429861821,7.4727,133.82,133.77,15.8123]
[1726429862128,7.4727,133.82,133.77,23.2877]
[1726429863735,22.47,133.84,133.77,23.2877]
[1726429863736,27.4716,133.84,133.8,7.4737]
[1726429864640,27.4716,133.84,133.79,7.4742]
[1726429866037,27.4716,133.84,133.8,7.4738]
[1726429866237,27.4716,133.84,133.79,7.4743]
[1726429867036,27.4716,133.84,133.8,7.4738]
[1726429867212,20.0,133.84,133.8,7.4738]
[1726429867538,27.4716,133.84,133.8,7.4738]
[1726429870846,27.4711,133.85,133.81,7.4732]
[1726429872650,7.7201483,133.86,133.81,7.4732]
[1726429873350,0.2496483,133.86,133.82,7.4727]
[1726429876048,0.2496483,133.86,133.83,7.472]
[1726429876645,0.2496483,133.86,133.84,7.4713]
[1726429882443,0.2496483,133.86,133.83,7.472]
[1726429884441,0.2496483,133.86,133.82,23.5637]
[1726429884839,0.2496483,133.86,133.82,16.0911]
[1726429885163,7.4711,133.85,133.81,6.3211]
[1726429885723,7.4711,133.85,133.8,7.4733]
[1726429888134,0.2496483,133.86,133.8,15.01180343]
[1726429888340,0.2496483,133.86,133.82,7.4722]
[1726429891471,7.7202483,133.86,133.81,7.4732]
[1726429898051,0.2496483,133.86,133.82,7.4724]
[1726429899060,0.2496483,133.86,133.82,15.01180343]
[1726429899361,0.2496483,133.86,133.85,7.471]
[1726429899559,0.2496483,133.86,133.84,7.4715]
[1726429900142,0.2496483,133.86,133.82,6.4599]
[1726429900338,0.2496483,133.86,133.79,45.04979901]
[1726429900762,0.2496483,133.86,133.79,37.56280343]
[1726429900976,0.2496483,133.86,133.82,7.4727]
[1726429910847,7.7203483,133.86,133.81,7.4731]
[1726429911166,7.471,133.85,133.81,7.4731]
[1726429911755,7.7201483,133.86,133.81,7.4731]
[1726429913164,7.7201483,133.86,133.82,7.4725]
[1726429913567,0.2496483,133.86,133.82,7.4725]
[1726429919380,7.7204483,133.86,133.81,7.4732]
[1726429919556,7.4711,133.85,133.81,7.4732]
[1726429924677,7.7202483,133.86,133.81,7.4732]
[1726429925980,7.7202483,133.86,133.82,7.4726]
[1726429926574,0.2496483,133.86,133.82,7.4726]
[1726429948500,0.2496483,133.86,133.83,7.4721]
[1726429951600,0.2496483,133.86,133.82,7.4726]
[1726429952295,7.7202483,133.86,133.82,7.4726]
[1726429952477,81.312184,133.85,133.78,7.4747]
[1726429952686,90.12408482,133.85,133.78,7.4747]
[1726429952892,23.776884,133.83,133.78,7.4747]
[1726429954296,31.249084,133.83,133.78,7.4747]
[1726429955507,31.249084,133.83,133.79,6.59957732]
[1726429955675,31.249084,133.83,133.78,7.4747]
[1726429955975,31.249084,133.83,133.79,6.59957732]
[1726429956181,31.249084,133.83,133.78,7.4747]
[1726429956182,46.246884,133.83,133.73,16.1654]
[1726429956417,23.776884,133.81,133.74,6.60009849]
[1726429956703,23.776884,133.81,133.73,16.1654]
[1726429957410,31.250284,133.81,133.76,7.4759]
[1726429959680,6.2081,133.82,133.77,7.4751]
[1726429960279,7.4726,133.83,133.78,7.4746]
[1726429972895,71.5539,133.85,133.76,15.01180343]
[1726429973096,20.0,133.83,133.8,7.4738]
[1726429973507,20.0,133.83,133.79,7.4743]
[1726429974299,27.4723,133.83,133.79,7.4743]
[1726429986204,20.0,133.85,133.79,7.4743]
[1726429986918,22.47,133.86,133.79,7.4743]
[1726429988524,20.0,133.85,133.79,7.4743]
[1726429989436,7.4722,133.83,133.79,7.4743]
[1726429990913,20.0,133.85,133.8,7.4734]
[1726429990914,27.4711,133.85,133.8,7.4734]
[1726429991114,7.4719,133.84,133.79,7.4743]
[1726429991514,20.0,133.83,133.79,7.4743]
[1726429993628,27.4711,133.85,133.8,7.4737]
[1726429998239,7.4716,133.84,133.8,7.4737]
[1726429998412,20.0,133.83,133.8,7.4737]
[1726430000630,20.0,133.83,133.78,7.4744]
[1726430001412,20.0,133.83,133.79,7.4742]
[1726430004141,22.47,133.88,133.78,59.91028743]
[1726430004340,404.5208483,133.9,133.82,15.1151]
[1726430004634,404.5208483,133.9,133.84,7.4715]
[1726430004635,7.4693,133.89,133.84,7.4715]
[1726430005021,7.4693,133.89,133.85,7.471]
[1726430005233,7.4693,133.89,133.84,7.4715]
[1726430008241,7.4694,133.88,133.83,7.472]
[1726430020636,7.47,133.87,133.82,28.5942]
[1726430020833,7.4716,133.84,133.82,15.1151]
[1726430021040,7.4716,133.84,133.79,22.1315]
[1726430021744,7.4716,133.84,133.79,29.6054]
[1726430023334,20.0,133.83,133.77,6.59895792]
[1726430023547,20.0,133.83,133.76,16.2492483]
[1726430023853,20.0,133.83,133.77,4.12483578]
[1726430024029,20.0,133.83,133.76,16.2492483]
[1726430024233,7.4727,133.82,133.77,11.60021988]
[1726430024527,7.4727,133.82,133.77,7.4754]
[1726430026749,7.4722,133.83,133.78,7.4749]
[1726430035149,20.0,133.85,133.78,7.4749]
[1726430035468,42.47,133.85,133.78,7.4749]
[1726430035633,23.776884,133.84,133.78,7.4749]
[1726430036251,7.4726,133.83,133.78,7.4749]
[1726430036455,31.248484,133.84,133.79,7.4741]
[1726430036637,7.4722,133.83,133.78,7.4748]
[1726430037347,22.47,133.82,133.78,7.4748]
[1726430037534,7.4722,133.83,133.78,7.4748]
[1726430041058,7.4722,133.83,133.79,7.4743]
[1726430041260,20.0,133.83,133.79,13.8756]
[1726430044942,18.13195846,133.83,133.79,13.8756]
[1726430045143,22.47,133.86,133.79,6.4013]
[1726430045367,55.05878482,133.85,133.79,6.4013]
[1726430046271,7.4727,133.82,133.79,6.4013]
[1726430052671,7.4722,133.83,133.79,6.4013]
[1726430052971,20.0,133.83,133.8,15.8162]
[1726430053467,48.94821832,133.87,133.8,15.8162]
[1726430053468,30.27241832,133.87,133.8,15.8162]
[1726430053642,20.0,133.86,133.8,15.8162]
[1726430054058,42.47,133.88,133.8,15.8162]
[1726430054256,20.0,133.85,133.81,7.4728]
[1726430055755,7.4706,133.86,133.81,7.4728]
[1726430056063,7.4698,133.88,133.83,7.4721]
[1726430056264,7.4698,133.88,133.83,13.7932]
[1726430056471,7.4688,133.89,133.84,23.9974]
[1726430056671,7.7179483,133.9,133.85,7.4708]
[1726430056961,0.2496483,133.9,133.86,7.4703]
[1726430058646,7.4688,133.89,133.84,23.9974]
[1726430060876,7.4688,133.89,133.85,7.471]
[1726430061673,7.7179483,133.9,133.85,7.471]
[1726430062566,7.7179483,133.9,133.86,7.4704]
[1726430062780,0.2496483,133.9,133.86,7.4704]
[1726430070356,0.2496483,133.9,133.84,23.997]
[1726430070551,7.4688,133.89,133.84,23.997]
[1726430070759,7.4695,133.88,133.84,16.5259]
[1726430072182,7.47,133.87,133.84,16.5259]
[1726430072691,7.4705,133.86,133.84,16.5259]
[1726430073883,7.4699,133.87,133.84,16.5259]
[1726430081395,27.4694,133.88,133.84,16.5259]
[1726430082375,20.0,133.88,133.84,23.9974]
[1726430085314,7.4694,133.88,133.84,23.9974]
[1726430090335,7.4694,133.88,133.84,16.5259]
[1726430092301,7.4694,133.88,133.84,6.5259]
[1726430099007,0.2496483,133.9,133.84,6.5259]
[1726430099008,7.4699,133.87,133.84,6.5259]
[1726430111919,61.3908483,133.9,133.83,6.3211]
[1726430112113,7.471,133.85,133.83,6.3211]
[1726430112321,7.4705,133.86,133.83,6.3211]
[1726430114824,7.47,133.87,133.83,6.3211]
[1726430115494,22.47,133.89,133.83,6.3211]
[1726430115705,27.4694,133.88,133.84,4.12343908]
[1726430115900,27.4694,133.88,133.83,6.3211]
[1726430116701,27.4694,133.88,133.83,13.7931]
[1726430118318,7.4694,133.88,133.83,13.7931]
[1726430122429,7.4699,133.87,133.83,13.7931]
[1726430126535,7.4699,133.87,133.83,6.3211]
[1726430129241,7.4705,133.86,133.83,6.3211]
[1726430135548,7.47,133.87,133.83,13.7931]
[1726430141529,7.47,133.87,133.83,6.3211]
[1726430150154,7.4705,133.86,133.83,6.3211]
[1726430150457,7.471,133.85,133.83,6.3211]
[1726430150836,7.4716,133.84,133.81,16.447]
[1726430161233,22.47,133.87,133.81,23.9202]
[1726430161234,20.0,133.87,133.81,23.9202]
[1726430161647,7.4709,133.86,133.81,23.9202]
[1726430162948,7.4713,133.85,133.81,16.447]
[1726430163640,7.4717,133.84,133.81,16.447]
[1726430164471,61.1456,133.87,133.78,16.1223]
[1726430164764,7.4743,133.8,133.76,24.9467483]
[1726430164965,7.4744,133.79,133.76,6.2570483]
[1726430165168,7.4755,133.78,133.76,6.2570483]
[1726430165468,42.47,133.82,133.76,0.2496483]
[1726430166259,7.4751,133.78,133.76,0.2496483]
[1726430166839,7.4755,133.77,133.76,0.2496483]
[1726430167555,27.4755,133.77,133.76,0.2496483]
[1726430173971,27.4755,133.77,133.72,0.2496483]
[1726430173972,7.4768,133.75,133.72,0.2496483]
[1726430182383,7.4772,133.74,133.72,0.2496483]
[1726430186490,7.4767,133.75,133.72,0.2496483]
[1726430190274,7.4762,133.76,133.72,0.2496483]
[1726430190473,20.0,133.75,133.72,0.2496483]
[1726430193369,7.4762,133.76,133.72,0.2496483]
[1726430199279,7.4767,133.75,133.72,0.2496483]
[1726430200500,7.4761,133.76,133.72,0.2496483]
[1726430201392,7.4766,133.75,133.72,0.2496483]
[1726430210185,412.09837618,133.79,133.72,0.2496483]
[1726430210186,7.4761,133.76,133.72,0.2496483]
[1726430210602,20.0,133.76,133.72,7.7275483]
[1726430210803,20.0,133.77,133.74,16.5465]
[1726430225721,20.0,133.77,133.74,23.011]
[1726430227602,7.4756,133.77,133.74,23.011]
[1726430233327,20.0,133.79,133.74,30.4878]
[1726430233521,7.4737,133.81,133.74,41.7028]
[1726430233726,7.4728,133.82,133.75,15.2732]
[1726430233913,7.4728,133.82,133.75,31.59376961]
[1726430234510,7.4728,133.82,133.75,30.28500343]
[1726430234698,8.81190082,133.84,133.75,15.2732]
[1726430235237,20.0,133.83,133.75,15.2732]
[1726430235405,20.0,133.83,133.76,6.5936]
[1726430236426,7.4727,133.82,133.76,6.5936]
[1726430237334,7.4727,133.82,133.77,7.4754]
[1726430238340,7.4727,133.82,133.77,26.164]
[1726430239335,27.4722,133.83,133.78,7.4747]
[1726430239553,27.4722,133.83,133.79,15.2732]
[1726430240414,27.4716,133.84,133.79,22.7474]
[1726430240615,7.4716,133.84,133.79,22.7474]
[1726430240824,7.4716,133.84,133.8,6.5936]
[1726430241014,7.471,133.85,133.8,6.5936]
[1726430241546,7.7201483,133.86,133.81,7.4732]
[1726430242506,20.0,133.85,133.81,7.4732]
[1726430243512,27.471,133.85,133.8,14.0673]
[1726430246044,27.4711,133.85,133.81,7.473]
[1726430246639,27.4711,133.85,133.8,14.0673]
[1726430250142,7.4717,133.84,133.8,6.5936]
[1726430250456,7.4722,133.83,133.8,6.5936]
[1726430250813,7.4727,133.82,133.8,6.5936]
[1726430251817,7.4732,133.81,133.8,6.5936]
[1726430253749,7.4732,133.81,133.79,15.2732]
[1726430253918,7.4738,133.8,133.79,15.2732]
[1726430254121,7.4733,133.81,133.79,15.2732]
[1726430255543,18.6788,133.85,133.79,15.2732]
[1726430255544,7.4738,133.8,133.79,15.2732]
[1726430255849,7.4738,133.8,133.76,22.7792]
[1726430256048,7.4744,133.79,133.76,22.7792]
[1726430256624,7.4739,133.8,133.76,22.7792]
[1726430276488,7.4739,133.8,133.76,30.2551]
[1726430276701,7.4733,133.81,133.76,30.2551]
[1726430279274,7.4733,133.81,133.77,4.12557366]
[1726430279574,7.4733,133.81,133.76,30.2551]
[1726430286195,20.0,133.84,133.79,7.4742]
[1726430286371,20.0,133.84,133.76,22.7792]
[1726430287381,27.4727,133.82,133.78,7.4749]
[1726430287701,27.4727,133.82,133.77,7.4753]
[1726430288270,27.4727,133.82,133.78,18.6869]
[1726430289876,7.4732,133.81,133.77,7.4753]
[1726430292799,20.0,133.82,133.76,22.7792]
[1726430292800,7.4738,133.8,133.76,22.7792]
[1726430296090,7.4732,133.81,133.76,30.255]
[1726430298118,7.4739,133.8,133.76,22.7792]
[1726430300218,20.0,133.82,133.76,22.7792]